bitfinex-derivatives/quotes_ETHF0:USTF0_20250518
["timestamp","ask_amount","ask_price","bid_price","bid_amount"]
[1747578161241,3.058,2538.3,2538.2,75.91763084]
[1747578162439,3.058,2538.3,2538.2,67.70683084]
[1747578162837,3.058,2538.3,2538.2,68.8614611]
[1747578163235,3.058,2538.3,2538.2,72.0692611]
[1747578163434,3.058,2538.3,2538.2,77.0692611]
[1747578163940,2.26242,2538.3,2538.2,77.0692611]
[1747578165242,2.26242,2538.3,2538.2,77.0672611]
[1747578165842,2.26242,2538.3,2538.2,58.2982611]
[1747578166042,2.26242,2538.3,2538.2,77.0662611]
[1747578166844,2.26242,2538.3,2538.2,82.9222611]
[1747578168647,2.26242,2538.3,2538.2,64.1542611]
[1747578168945,2.26242,2538.3,2538.2,82.9202611]
[1747578169446,2.26242,2538.3,2538.2,81.76563084]
[1747578169846,2.35460003,2538.3,2538.2,75.90963084]
[1747578172140,2.35460003,2538.3,2538.2,75.90663084]
[1747578172844,2.35460003,2538.3,2538.2,75.90563084]
[1747578173439,2.35460003,2538.3,2538.2,70.90563084]
[1747578174043,2.35460003,2538.3,2538.2,61.52963084]
[1747578174247,2.35460003,2538.3,2538.2,70.90563084]
[1747578174545,2.0763,2539.2,2539.1,0.78743]
[1747578174735,2.158,2539.3,2539.1,0.78741]
[1747578175043,0.78739,2539.2,2539.0,10.16244]
[1747578175244,5.92169,2539.2,2539.0,10.16244]
[1747578175445,5.92169,2539.2,2539.0,9.375]
[1747578175634,5.1343,2539.2,2539.0,10.16244]
[1747578175840,5.1343,2539.2,2539.0,10.16245]
[1747578176042,5.92171,2539.2,2539.0,9.375]
[1747578176242,5.92171,2539.2,2539.0,10.16244]
[1747578176639,0.78743,2539.1,2539.0,9.375]
[1747578176836,2.1668,2539.1,2539.0,10.16246]
[1747578177239,5.2248,2539.1,2539.0,10.16246]
[1747578177439,6.01223,2539.1,2539.0,10.16246]
[1747578177648,5.2248,2539.1,2539.0,10.16246]
[1747578178050,3.058,2539.1,2539.0,10.16246]
[1747578178245,3.058,2539.1,2539.0,16.74372299]
[1747578181450,3.058,2539.1,2539.0,26.11172299]
[1747578181645,3.058,2539.1,2539.0,0.78746]
[1747578181845,3.058,2539.1,2538.8,10.15752]
[1747578181846,0.78748,2539.0,2538.8,10.15752]
[1747578182040,7.10908,2539.0,2538.8,9.37]
[1747578182246,10.16708,2539.0,2538.8,9.37]
[1747578182649,10.16708,2539.0,2538.8,10.1575]
[1747578183246,9.3796,2539.0,2538.7,3.2078]
[1747578183450,0.78752,2538.8,2538.6,18.741]
[1747578183650,2.155,2538.7,2538.6,0.78758]
[1747578184253,5.213,2538.7,2538.6,0.78758]
[1747578184751,5.213,2538.7,2538.5,0.7876]
[1747578185050,0.7876,2538.6,2538.4,10.15463]
[1747578185244,2.1374,2538.5,2538.4,10.15463]
[1747578185455,4.1963,2538.5,2538.4,14.42978183]
[1747578186243,7.2543,2538.5,2538.4,14.42978183]
[1747578186653,7.2543,2538.5,2538.4,16.59978183]
[1747578187255,5.1169,2538.5,2538.4,16.59978183]
[1747578187947,5.1169,2538.5,2538.4,17.68368539]
[1747578190658,3.058,2538.5,2538.4,17.68368539]
[1747578194551,3.058,2538.5,2538.4,8.31668539]
[1747578194755,3.058,2538.5,2538.4,17.67668539]
[1747578196857,3.058,2538.5,2538.4,8.31668539]
[1747578197049,3.058,2538.5,2538.4,17.67468539]
[1747578197452,17.432,2538.5,2538.0,0.32202486]
[1747578197660,0.78802,2537.2,2536.5,2.54142525]
[1747578197850,0.78805,2537.1,2536.5,2.54142525]
[1747578198051,0.78805,2537.1,2536.5,4.51942525]
[1747578198361,5.78805,2537.1,2536.5,4.51942525]
[1747578199163,8.84605,2537.1,2536.5,4.51942525]
[1747578200464,8.84605,2537.1,2536.8,1.92212023]
[1747578200852,0.7882,2536.6,2536.5,4.51942525]
[1747578201060,3.996,2536.6,2536.5,1.978]
[1747578202149,3.2078,2536.6,2536.5,1.978]
[1747578202654,3.996,2536.6,2536.5,1.978]
[1747578210565,3.996,2536.6,2535.9,0.3227184]
[1747578210566,0.78842,2535.9,2535.8,3.2078]
[1747578210865,1.97143,2535.5,2534.4,16.7822]
[1747578211167,0.78865,2535.2,2535.1,4.29650748]
[1747578211563,0.78867,2535.1,2535.0,9.354]
[1747578211959,0.78867,2535.1,2535.0,13.46939312]
[1747578212161,0.78867,2535.1,2535.0,16.52739312]
[1747578213063,0.78865,2535.2,2535.0,16.52739312]
[1747578213265,3.2078,2535.3,2535.1,2.0842]
[1747578213465,3.2078,2535.3,2535.1,4.1501]
[1747578213772,3.99641,2535.3,2535.2,4.37287996]
[1747578213980,3.99641,2535.3,2535.2,6.59867996]
[1747578214776,3.2078,2535.3,2535.2,6.59867996]
[1747578215071,3.99641,2535.3,2535.2,6.59867996]
[1747578215576,3.2078,2535.3,2535.2,6.59867996]
[1747578215874,3.99641,2535.3,2535.2,6.59867996]
[1747578216374,3.99641,2535.3,2535.2,15.95067996]
[1747578217671,0.78861,2535.3,2535.2,15.95067996]
[1747578217974,3.99641,2535.3,2535.2,15.95067996]
[1747578219370,3.99641,2535.3,2535.2,15.94967996]
[1747578221278,3.99641,2535.3,2535.2,6.59867996]
[1747578221475,3.99641,2535.3,2535.2,15.94867996]
[1747578223775,3.99641,2535.3,2535.2,16.73731996]
[1747578224077,3.99641,2535.3,2535.2,15.94667996]
[1747578224775,3.2078,2535.3,2535.2,16.73531996]
[1747578225575,0.78846,2535.8,2535.6,0.78849]
[1747578225779,0.78846,2535.8,2535.7,15.847]
[1747578226083,0.78845,2535.8,2535.7,20.1019396]
[1747578226581,3.99625,2535.8,2535.7,2.2354]
[1747578227181,7.05425,2535.8,2535.7,2.2354]
[1747578227478,7.05425,2535.8,2535.5,9.346]
[1747578227479,0.78851,2535.6,2535.5,9.346]
[1747578228081,0.78854,2535.5,2535.4,11.5804]
[1747578228287,3.99634,2535.5,2535.4,11.5804]
[1747578228881,0.78854,2535.5,2535.4,11.5804]
[1747578230783,0.78854,2535.5,2535.4,11.5774]
[1747578232080,3.2078,2535.6,2535.4,11.5774]
[1747578232285,3.2078,2535.6,2535.4,16.50245666]
[1747578232487,0.78854,2535.5,2535.4,16.50245666]
[1747578232875,0.78854,2535.6,2535.4,16.50245666]
[1747578233074,0.78854,2535.5,2535.4,15.71389666]
[1747578234388,0.78854,2535.5,2535.4,6.37189666]
[1747578234586,0.78854,2535.5,2535.4,25.07189666]
[1747578236691,3.2078,2535.6,2535.5,0.78854]
[1747578236883,3.2078,2535.6,2535.5,2.92574]
[1747578237079,3.2078,2535.6,2535.5,7.39341329]
[1747578237491,3.2078,2535.9,2535.6,0.78848]
[1747578237683,0.78845,2535.8,2535.7,6.3337]
[1747578237883,0.78845,2535.8,2535.7,20.21000047]
[1747578238286,0.78845,2535.8,2535.7,15.6677]
[1747578241791,3.2078,2535.9,2535.8,0.78845]
[1747578241998,3.2078,2535.9,2535.8,3.05585]
[1747578242191,3.2078,2535.9,2535.8,7.33912152]
[1747578242891,3.99622,2535.9,2535.8,6.55067152]
[1747578243385,3.99622,2535.9,2535.8,15.87767152]
[1747578243591,3.99622,2535.9,2535.8,11.5944]
[1747578244190,3.99622,2535.9,2535.8,2.2674]
[1747578246898,3.2078,2535.9,2535.8,3.05585]
[1747578247090,3.99622,2535.9,2535.8,6.434419]
[1747578250497,3.99622,2535.9,2535.8,15.752419]
[1747578251089,3.99622,2535.9,2535.8,6.434419]
[1747578251590,3.99622,2535.9,2535.8,15.751419]
[1747578255791,3.2078,2536.2,2535.8,15.751419]
[1747578255996,1.56492805,2536.3,2536.0,3.2078]
[1747578256200,2.35325805,2536.3,2536.1,3.06985]
[1747578256503,2.35325805,2536.3,2536.2,4.3672]
[1747578257004,2.35325805,2536.3,2536.2,18.17652462]
[1747578257700,1.56492805,2536.3,2536.2,18.96485462]
[1747578258206,2.35322805,2536.3,2536.2,18.17652462]
[1747578258503,2.35322805,2536.3,2536.2,18.96485462]
[1747578258802,1.56492805,2536.3,2536.2,18.96485462]
[1747578259402,0.7883,2536.3,2536.2,18.96485462]
[1747578260004,0.7883,2536.3,2536.2,18.17652462]
[1747578260199,0.65337575,2536.4,2536.2,18.17652462]
[1747578260406,0.65337575,2536.4,2536.3,14.4436]
[1747578260907,0.65337575,2536.4,2536.3,18.8602381]
[1747578262916,0.78822,2536.6,2536.4,0.78825]
[1747578263114,0.78822,2536.6,2536.5,2.1623]
[1747578263314,0.78822,2536.6,2536.5,6.63644713]
[1747578263613,0.7882,2536.6,2536.5,7.42466713]
[1747578263915,0.7882,2536.6,2536.5,6.63644713]
[1747578264315,3.86117575,2536.9,2536.5,6.63644713]
[1747578264511,0.78817,2536.8,2536.6,0.78818]
[1747578264817,0.78814,2536.8,2536.7,2.1765]
[1747578265012,0.78814,2536.8,2536.7,6.48931997]
[1747578265214,0.78814,2536.8,2536.7,2.1765]
[1747578271714,3.2078,2536.9,2536.7,2.1765]
[1747578272017,3.99592,2536.9,2536.7,7.45629541]
[1747578272213,3.99592,2536.9,2536.8,3.06704]
[1747578272415,3.99584,2537.2,2537.0,0.78807]
[1747578272616,3.99584,2537.2,2537.1,13.7814]
[1747578272820,3.99584,2537.2,2537.1,59.1537672]
[1747578275219,3.99584,2537.2,2537.1,49.8687672]
[1747578275417,0.78804,2537.2,2537.1,13.7764]
[1747578275715,3.99584,2537.2,2537.1,13.7764]
[1747578277618,395.38859208,2538.0,2537.2,5.91605]
[1747578277817,361.81473415,2538.0,2537.9,3.9956]
[1747578278017,340.57069074,2538.0,2537.9,22.5616]
[1747578278217,339.50419652,2538.0,2537.9,75.92775969]
[1747578278525,334.15330706,2538.0,2537.9,75.92775969]
[1747578278722,330.01529451,2538.0,2537.9,75.92775969]
[1747578278914,300.60187668,2538.0,2537.9,75.92775969]
[1747578279116,291.19942847,2538.0,2537.9,75.92775969]
[1747578279424,288.09402847,2538.0,2537.9,75.92675969]
[1747578279624,281.61903565,2538.0,2537.9,75.92675969]
[1747578279825,279.64855348,2538.0,2537.9,75.92675969]
[1747578280125,275.51054093,2538.0,2537.9,76.95936692]
[1747578280425,252.67668622,2538.0,2537.9,76.95936692]
[1747578280631,250.70620405,2538.0,2537.9,76.95936692]
[1747578280925,246.5681915,2538.0,2537.9,76.95936692]
[1747578281124,244.59770933,2538.0,2537.9,76.95936692]
[1747578281324,240.45969678,2538.0,2537.9,76.95936692]
[1747578281521,238.48921461,2538.0,2537.9,76.95136692]
[1747578281822,238.2921664,2538.0,2537.9,79.07126692]
[1747578282017,236.32741819,2538.0,2537.9,79.07126692]
[1747578282426,236.13036998,2538.0,2537.9,80.61759367]
[1747578282725,236.13036998,2538.0,2537.9,96.32559367]
[1747578284530,235.93348006,2538.0,2537.9,96.32559367]
[1747578284718,235.93348006,2538.0,2537.9,77.76859367]
[1747578284918,235.93348006,2538.0,2537.9,96.31859367]
[1747578285218,213.22329225,2538.0,2537.9,96.31859367]
[1747578285415,205.2055292,2538.0,2537.9,86.46559367]
[1747578285617,198.51203002,2538.0,2537.9,86.46559367]
[1747578285923,191.95135158,2538.0,2537.9,86.46559367]
[1747578286115,185.59369306,2538.0,2537.9,86.46559367]
[1747578286321,178.82883388,2538.0,2537.9,84.91926692]
[1747578286519,174.94585462,2538.0,2537.9,84.91726692]
[1747578286722,172.78006544,2538.0,2537.9,84.91726692]
[1747578286921,170.81116618,2538.0,2537.9,84.91726692]
[1747578287117,168.87537626,2538.0,2537.9,66.37026692]
[1747578287319,168.87537626,2538.0,2537.9,84.91526692]
[1747578287520,162.79577212,2538.0,2537.9,84.91526692]
[1747578287719,154.4417536,2538.0,2537.9,84.91526692]
[1747578287922,149.70156085,2538.0,2537.9,84.91526692]
[1747578288128,143.84895159,2538.0,2537.9,84.91526692]
[1747578288427,131.73232415,2538.0,2537.9,84.91526692]
[1747578288621,106.7794279,2538.0,2537.9,84.91526692]
[1747578288928,97.85929946,2538.0,2537.9,66.37026692]
[1747578289231,93.54768954,2538.0,2537.9,84.91126692]
[1747578289529,91.40999965,2538.0,2537.9,84.91126692]
[1747578289825,87.28447039,2538.0,2537.9,84.91126692]
[1747578290126,78.59620195,2538.0,2537.9,84.91126692]
[1747578290321,71.91427936,2538.0,2537.9,66.37026692]
[1747578290521,69.70727936,2538.0,2537.9,84.90926692]
[1747578290719,67.54149018,2538.0,2537.9,66.37026692]
[1747578290927,61.40602092,2538.0,2537.9,84.90826692]
[1747578291128,55.27167248,2538.0,2537.9,84.90826692]
[1747578291424,47.35443396,2538.0,2537.9,84.90826692]
[1747578291622,45.18864478,2538.0,2537.9,84.90826692]
[1747578291822,41.55736552,2538.0,2537.9,84.90826692]
[1747578292024,35.90433711,2538.0,2537.9,66.37026692]
[1747578292327,33.84052796,2538.0,2537.9,84.90626692]
[1747578292533,32.12368872,2538.0,2537.9,84.90626692]
[1747578292832,30.45290957,2538.0,2537.9,84.90526692]
[1747578293031,28.90400957,2538.0,2537.9,84.90526692]
[1747578293329,25.77696042,2538.0,2537.9,84.90526692]
[1747578293530,24.19687127,2538.0,2537.9,84.90526692]
[1747578293832,22.71885127,2538.0,2537.9,66.37026692]
[1747578294031,20.09099127,2538.0,2537.9,84.90426692]
[1747578294233,19.10828127,2538.0,2537.9,84.90426692]
[1747578294433,18.09166127,2538.0,2537.9,66.37026692]
[1747578294629,18.09166127,2538.0,2537.9,61.37026692]
[1747578294832,18.09166127,2538.0,2537.9,68.49936692]
[1747578295135,18.09166127,2538.0,2537.9,67.72716692]
[1747578296033,18.09166127,2538.0,2537.9,58.47816692]
[1747578296233,18.09166127,2538.0,2537.9,77.00816692]
[1747578296938,18.09166127,2538.0,2537.9,77.00716692]
[1747578297635,18.09166127,2538.0,2537.9,58.47816692]
[1747578297835,18.09166127,2538.0,2537.9,77.00616692]
[1747578298936,18.09166127,2538.0,2537.9,79.17786692]
[1747578299329,17.61907234,2538.0,2537.9,79.17786692]
[1747578302437,16.36391387,2538.0,2537.9,76.96216692]
[1747578302738,16.36391387,2538.0,2537.9,56.19236692]
[1747578302937,16.36391387,2538.0,2537.9,74.67536692]
[1747578304938,16.36291387,2538.0,2537.9,68.81936692]
[1747578306835,16.36291387,2538.0,2537.9,59.58036692]
[1747578307042,16.36291387,2538.0,2537.9,69.96391993]
[1747578307740,16.36291387,2538.0,2537.9,51.48491993]
[1747578307942,16.36291387,2538.0,2537.9,69.96291993]
[1747578308140,16.36291387,2538.0,2537.9,51.48491993]
[1747578308338,16.36291387,2538.0,2537.9,69.96291993]
[1747578308637,16.36291387,2538.0,2537.9,51.48491993]
[1747578308843,16.36291387,2538.0,2537.9,60.72991993]
[1747578309041,16.36291387,2538.0,2537.9,6.68931993]
[1747578309343,25.20868387,2538.0,2537.9,10.37031993]
[1747578309732,28.32430384,2538.0,2537.9,8.94321993]
[1747578309933,0.78782,2537.9,2537.8,9.23]
[1747578310130,5.94792,2537.9,2537.8,9.23]
[1747578310350,10.94792,2537.9,2537.8,9.23]
[1747578310640,10.1601,2537.9,2537.8,4.55630932]
[1747578310836,10.1601,2537.9,2537.8,13.78630932]
[1747578311441,10.1591,2537.9,2537.8,13.78630932]
[1747578312336,5.1591,2537.9,2537.8,14.57413932]
[1747578312530,10.1591,2537.9,2537.8,14.57413932]
[1747578313445,7.1011,2537.9,2537.8,14.57413932]
[1747578314843,7.1011,2537.9,2537.8,5.34413932]
[1747578315040,7.1011,2537.9,2537.8,14.56913932]
[1747578315441,2.1011,2537.9,2537.8,14.56913932]
[1747578317133,5.1591,2537.9,2537.8,14.56913932]
[1747578317546,5.1591,2537.9,2537.8,5.34413932]
[1747578317847,5.1591,2537.9,2537.8,13.77730932]
[1747578318234,7.1011,2537.9,2537.8,4.55630932]
[1747578318439,2.1011,2537.9,2537.8,23.02330932]
[1747578318735,2.1011,2537.9,2537.8,18.467]
[1747578319040,2.1011,2537.9,2537.8,22.66299248]
[1747578319239,2.1011,2537.9,2537.8,23.45082248]
[1747578319440,2.1011,2537.9,2537.8,22.66299248]
[1747578320147,2.1011,2537.9,2537.8,23.45082248]
[1747578320551,16.27073384,2538.0,2537.8,22.66299248]
[1747578320742,14.17938384,2538.0,2537.9,6.2378]
[1747578320943,13.15248384,2538.0,2537.9,6.2378]
[1747578321140,13.15248384,2538.0,2537.9,32.16820362]
[1747578321439,13.15248384,2538.0,2537.9,13.70420362]
[1747578321646,13.15248384,2538.0,2537.9,33.19346086]
[1747578321848,12.67984417,2538.0,2537.9,33.19346086]
[1747578322150,12.67984417,2538.0,2537.9,11.67246086]
[1747578322347,12.67984417,2538.0,2537.9,30.13346086]
[1747578322747,12.67984417,2538.0,2537.9,11.67246086]
[1747578322954,12.67984417,2538.0,2537.9,27.89026086]
[1747578323550,12.67984417,2538.0,2537.9,27.10146086]
[1747578323756,12.67984417,2538.0,2537.9,27.88926086]
[1747578325353,12.67984417,2538.0,2537.9,30.04736086]
[1747578326251,12.67984417,2538.0,2537.9,33.10536086]
[1747578326555,12.67984417,2538.0,2537.9,35.401021]
[1747578327356,12.67984417,2538.0,2537.9,32.343021]
[1747578328454,12.67984417,2538.0,2537.9,23.134021]
[1747578328753,12.67984417,2538.0,2537.9,32.340021]
[1747578328953,12.67984417,2538.0,2537.9,13.888021]
[1747578329154,12.67984417,2538.0,2537.9,32.298021]
[1747578329355,12.67984417,2538.0,2537.9,13.888021]
[1747578329660,12.67984417,2538.0,2537.9,30.138921]
[1747578330660,12.67984417,2538.0,2537.9,27.83826086]
[1747578333753,12.67984417,2538.0,2537.9,68.63826086]
[1747578334052,12.20718475,2538.0,2537.9,68.63826086]
[1747578334260,8.61518475,2538.0,2537.9,68.63826086]
[1747578335057,5.11536478,2538.0,2537.9,68.63826086]
[1747578337662,5.11536478,2538.0,2537.9,70.86366086]
[1747578337855,4.17065478,2538.0,2537.9,70.86366086]
[1747578338049,3.37326478,2538.0,2537.9,70.86366086]
[1747578338254,0.2,2539.0,2537.9,70.86366086]
[1747578338255,0.2,2539.0,2538.4,1.9691]
[1747578338456,2.5859,2539.0,2538.8,3.99531]
[1747578338658,2.5859,2539.0,2538.9,18.396]
[1747578338965,2.5859,2539.0,2538.9,23.7198353]
[1747578339158,5.6439,2539.0,2538.9,66.7452353]
[1747578339964,3.258,2539.0,2538.9,66.7452353]
[1747578341658,3.258,2539.0,2538.9,64.75207901]
[1747578341960,3.258,2539.0,2538.9,64.75107901]
[1747578343061,3.258,2539.0,2538.9,46.36207901]
[1747578343266,8.258,2539.0,2538.9,10.20873371]
[1747578343562,10.6433,2539.0,2538.9,10.20873371]
[1747578343758,10.6433,2539.0,2538.9,13.41653371]
[1747578344268,5.6433,2539.0,2538.9,18.63327288]
[1747578344658,5.6433,2539.0,2538.9,17.60753917]
[1747578345962,5.6433,2539.0,2538.9,26.80653917]
[1747578348176,3.058,2539.0,2538.9,26.80653917]
[1747578348770,3.058,2539.0,2538.9,30.20437977]
[1747578349272,3.15018003,2539.0,2538.9,71.00437977]
[1747578350066,2.67769027,2539.0,2538.9,61.80137977]
[1747578350270,2.67769027,2539.0,2538.9,70.99737977]
[1747578351873,2.67769027,2539.0,2538.9,70.99537977]
[1747578352371,0.09218003,2539.0,2538.9,27.82397977]
[1747578352869,0.09218003,2539.0,2538.9,68.62397977]
[1747578353070,0.09218003,2539.0,2538.9,70.99167977]
[1747578353271,3.15018003,2539.0,2538.9,70.99167977]
[1747578354269,0.09218003,2539.0,2538.9,70.99167977]
[1747578357073,0.09218003,2539.0,2538.9,72.53496469]
[1747578357663,0.09218003,2539.0,2538.9,54.16296469]
[1747578357868,0.09218003,2539.0,2538.9,72.52396469]
[1747578358067,3.15018003,2539.0,2538.9,72.52396469]
[1747578359475,3.15018003,2539.0,2538.9,72.47896469]
[1747578359871,2.67771482,2539.0,2538.9,72.47896469]
[1747578360370,2.67771482,2539.0,2538.9,10.20777469]
[1747578360576,2.76989485,2539.0,2538.9,10.99526469]
[1747578360781,2.76989485,2539.0,2538.9,9.45197977]
[1747578360970,2.76989485,2539.0,2538.9,50.25197977]
[1747578361280,2.76989485,2539.0,2538.9,52.46007977]
[1747578362381,2.76989485,2539.0,2538.9,70.77207977]
[1747578362579,2.76989485,2539.0,2538.9,68.56297977]
[1747578363285,2.76989485,2539.0,2538.9,6.89129977]
[1747578363487,1.96881,2538.8,2538.1,0.15262381]
[1747578363794,0.78769,2538.3,2538.1,0.15262381]
[1747578363989,3.2078,2538.4,2538.1,0.15262381]
[1747578364191,3.84569,2538.3,2537.8,0.78783]
[1747578364392,3.2078,2538.1,2537.8,0.78783]
[1747578364595,3.2078,2538.1,2537.8,7.16317898]
[1747578364892,3.2078,2538.1,2538.0,0.78777]
[1747578365081,3.2078,2538.1,2537.9,0.78779]
[1747578365287,6.2658,2538.1,2537.9,5.05624853]
[1747578365592,3.058,2538.1,2538.0,14.20623853]
[1747578365783,3.058,2538.1,2538.0,0.78777]
[1747578366088,3.058,2538.1,2538.0,14.24520931]
[1747578366484,3.058,2538.1,2538.0,15.65213931]
[1747578366687,3.058,2538.1,2538.0,16.43990931]
[1747578366886,2.6754,2538.1,2538.0,15.65213931]
[1747578367088,2.6754,2538.1,2538.0,13.45743931]
[1747578367287,2.6754,2538.1,2538.0,4.30743931]
[1747578367492,5.8832,2538.1,2538.0,4.30743931]
[1747578367991,0.78781,2537.9,2537.6,1.28900459]
[1747578368188,3.2078,2537.8,2537.6,1.28900459]
[1747578368386,4.5855,2537.8,2537.6,1.28900459]
[1747578368591,3.36156,2537.7,2537.6,1.28900459]
[1747578368890,4.73926,2537.7,2537.6,1.28900459]
[1747578369192,12.79726,2537.7,2537.4,0.78795]
[1747578369385,7.79726,2537.7,2537.4,0.78795]
[1747578370093,7.79726,2537.7,2537.3,3.10277]
[1747578370491,7.0094,2537.7,2537.3,2.3148]
[1747578370690,7.0094,2537.7,2537.4,0.78795]
[1747578371191,3.9514,2537.7,2537.5,0.78792]
[1747578371391,3.9514,2537.7,2537.5,3.09612]
[1747578371787,3.9514,2537.7,2537.5,2.3082]
[1747578371984,8.9514,2537.7,2537.4,4.17802381]
[1747578372298,0.78797,2537.4,2537.1,14.663]
[1747578372490,1.3762,2537.3,2537.1,6.30403]
[1747578372686,1.3762,2537.3,2537.1,5.516]
[1747578372891,1.3762,2537.3,2537.1,6.30403]
[1747578375196,4.584,2537.5,2537.3,2.2932]
[1747578375399,4.77523417,2538.3,2537.4,21.5148]
[1747578375702,0.78774,2538.1,2537.7,0.78785]
[1747578375894,3.7227,2538.2,2537.8,11.4382]
[1747578376200,3.7227,2538.2,2537.8,21.38801]
[1747578377095,4.51041,2538.2,2537.8,21.38801]
[1747578377803,4.51041,2538.2,2537.9,0.78779]
[1747578378003,4.51041,2538.2,2538.0,2.1935]
[1747578379096,3.7227,2538.2,2538.0,2.1935]
[1747578379600,3.7227,2538.2,2538.0,6.7202955]
[1747578380001,0.78774,2538.1,2538.0,13.6687955]
[1747578380200,5.22294,2538.1,2538.0,4.5267955]
[1747578380404,9.4352,2538.1,2537.8,9.141]
[1747578380602,4.4352,2538.1,2537.8,11.4389]
[1747578380797,0.78779,2538.0,2537.6,3.14908]
[1747578381002,1.3772,2537.9,2537.7,12.22676]
[1747578381301,2.165,2537.9,2537.7,15.65903846]
[1747578381605,2.165,2537.9,2537.7,12.22676]
[1747578381904,1.3772,2537.9,2537.7,11.4389]
[1747578382104,1.3772,2537.9,2537.8,2.2979]
[1747578382399,0.78789,2537.7,2537.4,0.78793]
[1747578382593,0.78785,2537.8,2537.5,3.08581]
[1747578382798,1.3772,2537.8,2537.6,0.78787]
[1747578383105,5.22304,2537.8,2537.7,2.368]
[1747578383303,4.4352,2537.8,2537.7,2.368]
[1747578383500,3.058,2537.8,2537.7,3.15586]
[1747578383809,3.84583,2537.8,2537.7,2.368]
[1747578384300,0.78783,2537.8,2537.7,2.368]
[1747578384501,4.5831,2537.9,2537.7,2.368]
[1747578384701,0.78783,2537.8,2537.7,2.368]
[1747578389210,0.78795,2537.4,2537.3,2.2955]
[1747578389415,0.78795,2537.4,2537.3,4.5746]
[1747578390214,3.84595,2537.4,2537.3,2.2791]
[1747578390419,5.22025,2537.4,2537.3,2.2791]
[1747578390715,3.84595,2537.4,2537.3,2.2791]
[1747578392213,3.2078,2537.5,2537.3,2.2791]
[1747578392518,3.99574,2537.5,2537.3,7.40128066]
[1747578392715,0.78795,2537.4,2537.3,6.61332066]
[1747578393016,0.78795,2537.4,2537.3,2.2791]
[1747578393409,3.2078,2537.5,2537.3,2.2791]
[1747578393621,3.99574,2537.5,2537.3,3.06708]
[1747578394310,3.99574,2537.5,2537.3,2.2791]
[1747578394619,0.78796,2537.4,2537.3,2.2791]
[1747578394910,0.78795,2537.4,2537.3,2.2791]
[1747578396220,3.84595,2537.4,2537.3,2.2791]
[1747578396707,0.78805,2537.1,2537.0,2.1894]
[1747578398720,5.0,2537.1,2536.8,1.15525709]
[1747578399038,3.99591,2536.9,2536.8,1.15525709]
[1747578399220,3.99591,2536.9,2536.8,3.50325709]
[1747578399921,3.99591,2536.9,2536.8,2.348]
[1747578400122,7.05391,2536.9,2536.8,2.348]
[1747578401220,3.99591,2536.9,2536.8,2.348]
[1747578403624,3.2078,2536.9,2536.3,2.3427]
[1747578403927,0.78827,2536.4,2536.3,2.3427]
[1747578404630,0.78827,2536.4,2536.3,3.131]
[1747578404925,3.2078,2536.5,2536.4,0.78827]
[1747578405125,3.99606,2536.5,2536.4,2.3853]
[1747578405927,3.99606,2536.5,2536.4,3.17357]
[1747578406123,8.2078,2536.5,2535.9,1.15525709]
[1747578406428,2.8532,2536.2,2535.9,1.15525709]
[1747578406626,2.8532,2536.2,2536.0,7.62718]
[1747578407522,3.64154,2536.2,2536.0,6.8388]
[1747578408326,3.64155,2536.2,2536.0,6.8388]
[1747578409031,0.78836,2536.1,2536.0,6.8388]
[1747578409231,3.64154,2536.2,2536.0,6.8388]
[1747578409531,0.78836,2536.1,2536.0,6.8388]
[1747578410433,2.8532,2536.2,2536.1,0.78836]
[1747578410728,2.8532,2536.2,2536.0,6.8388]
[1747578410729,0.78836,2536.1,2536.0,6.8388]
[1747578411930,3.64154,2536.2,2536.0,7.62717]
[1747578412124,2.8532,2536.2,2536.1,0.78836]
[1747578412434,3.64153,2536.2,2536.0,7.62717]
[1747578413328,0.78836,2536.1,2536.0,7.62717]
[1747578413637,0.78836,2536.1,2536.0,7.62719]
[1747578413837,0.78836,2536.1,2536.0,6.8388]
[1747578414332,0.78836,2536.1,2536.0,7.62719]
[1747578414631,0.78836,2536.1,2536.0,4.6052]
[1747578414934,2.8532,2536.2,2536.1,0.78836]
[1747578415232,2.8532,2536.2,2536.1,4.99490565]
[1747578415422,2.8532,2536.2,2536.1,7.30970565]
[1747578415934,3.99599,2536.7,2536.1,6.52134565]
[1747578416137,3.2078,2536.7,2536.4,0.78826]
[1747578416333,3.99599,2536.7,2536.5,5.5542]
[1747578416633,3.99599,2536.7,2536.5,6.34241]
[1747578416828,3.99599,2536.7,2536.5,5.5542]
[1747578417029,3.99599,2536.7,2536.5,6.34243]
[1747578417231,0.7882,2536.6,2536.5,5.5542]
[1747578417837,0.7882,2536.6,2536.5,6.34243]
[1747578418035,3.996,2536.7,2536.5,6.34243]
[1747578418236,3.058,2536.6,2536.5,6.34243]
[1747578418735,3.058,2536.6,2536.5,10.60544177]
[1747578419236,3.2078,2536.7,2536.6,0.7882]
[1747578419638,3.2078,2536.7,2536.6,4.2395]
[1747578420135,3.2078,2536.7,2536.6,3.4513]
[1747578421337,3.2078,2536.7,2536.6,4.2395]
[1747578422439,3.2078,2536.7,2536.6,17.77659635]
[1747578422734,9.101,2537.4,2537.1,0.78803]
[1747578422735,3.99577,2537.4,2537.1,0.78803]
[1747578422935,3.99577,2537.4,2537.2,6.4419]
[1747578423134,3.2078,2537.4,2537.2,10.58142]
[1747578423334,1.56743417,2537.4,2537.3,0.78799]
[1747578423539,1.56743417,2537.4,2537.3,3.96249]
[1747578424040,1.56743417,2537.4,2537.3,8.5286786]
[1747578424237,1.56743417,2537.4,2537.3,11.7364786]
[1747578425133,1.56743417,2537.4,2537.3,8.5286786]
[1747578425736,0.65304821,2537.7,2537.5,0.7879]
[1747578425940,0.65304821,2537.7,2537.6,4.17169]
[1747578426137,0.65304821,2537.7,2537.6,8.29006147]
[1747578427735,0.65304821,2537.7,2537.6,25.69117147]
[1747578428137,0.65304821,2537.7,2537.6,7.50217147]
[1747578428340,0.65304821,2537.7,2537.6,16.59017147]
[1747578428845,0.65304821,2537.7,2537.6,17.37806147]
[1747578429946,3.99562,2537.9,2537.6,17.37806147]
[1747578430132,3.99562,2537.9,2537.7,3.1415]